bitfinex/quotes_ETHUSD_20241130
["timestamp","ask_amount","ask_price","bid_price","bid_amount"]
[1732935225054,3.193332,3625.3,3624.5,0.08628198]
[1732935225055,3.55015121,3625.0,3624.5,0.08628198]
[1732935225205,2.75863,3625.0,3624.6,0.08627587]
[1732935225554,2.75806,3625.8,3624.3,0.1380414]
[1732935225555,1.649,3626.1,3624.9,1.5162]
[1732935225721,0.25706905,3626.0,3625.0,0.08627587]
[1732935225920,0.25706905,3626.0,3624.9,1.5162]
[1732935225921,2.75836,3625.4,3625.1,0.08627587]
[1732935226156,2.75839,3625.3,3625.2,0.08627587]
[1732935226359,4.43488899,3625.3,3624.5,1.5162]
[1732935226657,1.649,3625.3,3624.6,0.22429278]
[1732935226949,2.75877,3624.8,3624.7,0.08626819]
[1732935227161,2.7589,3624.7,3624.2,0.13803742]
[1732935227464,2.75867,3625.0,3624.3,2.84542067]
[1732935227743,2.9509536,3625.2,3624.6,2.75886]
[1732935227953,2.9509536,3625.2,3624.2,0.20013719]
[1732935227954,0.45999536,3625.1,3624.7,0.08628067]
[1732935228117,2.75875,3624.9,3624.8,0.08628067]
[1732935229738,2.75885,3624.7,3624.2,0.31058933]
[1732935230054,2.75874,3624.9,3624.3,0.08628239]
[1732935230237,2.75864,3625.0,3624.4,0.08628239]
[1732935230445,2.75864,3625.0,3624.5,0.08628239]
[1732935230748,2.7587,3624.9,3624.6,0.08628239]
[1732935230961,2.75877,3624.8,3624.7,0.08628239]
[1732935231751,2.75904,3624.5,3624.2,0.1380397]
[1732935231962,2.75904,3624.5,3624.3,0.0862819]
[1732935232118,2.75904,3624.5,3624.4,0.0862819]
[1732935232626,2.75897,3624.6,3624.4,0.0862819]
[1732935232819,2.75897,3624.6,3624.5,0.0862819]
[1732935233226,2.75908,3624.4,3624.2,0.13805191]
[1732935233451,2.75908,3624.4,3624.3,0.08628245]
[1732935235131,2.75897,3624.6,3624.3,0.08628245]
[1732935235330,2.75897,3624.6,3624.4,0.08628245]
[1732935235552,2.75897,3624.6,3624.5,0.08628245]
[1732935236629,2.75897,3624.6,3624.1,1.5162]
[1732935236935,2.75897,3624.6,3624.2,0.22433185]
[1732935237140,2.75892,3624.7,3624.3,0.08628148]
[1732935237342,2.75879,3624.8,3624.3,0.08628148]
[1732935237543,2.75892,3624.6,3624.4,0.08628148]
[1732935237743,2.75892,3624.6,3624.5,0.08628148]
[1732935240242,2.75892,3624.6,3624.1,1.5162]
[1732935240426,2.75892,3624.6,3624.2,0.22433442]
[1732935240632,2.75892,3624.6,3624.3,0.08628247]
[1732935240832,2.75892,3624.6,3624.4,0.08628247]
[1732935241033,2.75892,3624.6,3624.5,0.08628247]
[1732935242587,2.9509936,3625.2,3624.5,0.08628247]
[1732935242870,2.9509936,3625.2,3624.8,1.5927]
[1732935242871,2.75851,3625.2,3624.8,1.5927]
[1732935243031,2.75821,3625.6,3624.9,0.22433442]
[1732935243238,2.75821,3625.6,3625.0,0.08628247]
[1732935243458,2.75821,3625.6,3625.1,0.08628247]
[1732935243769,2.75824,3625.5,3625.2,0.08628247]
[1732935243970,2.75831,3625.4,3625.3,0.08628247]
[1732935244178,2.75821,3625.6,3625.3,0.08628247]
[1732935244394,2.75825,3625.5,3625.4,0.08628247]
[1732935245174,2.75825,3625.5,3624.9,2.89674195]
[1732935245479,2.75801,3625.8,3625.3,1.6269]
[1732935245645,2.75801,3625.8,3625.4,0.2243131]
[1732935245840,1.6007,3626.3,3625.5,0.08626115]
[1732935246040,2.75785,3626.0,3625.6,0.08624867]
[1732935246271,2.75801,3625.9,3625.7,0.08624867]
[1732935246482,2.75809,3625.7,3625.4,0.13799787]
[1732935246640,2.75809,3625.7,3625.5,0.0862531]
[1732935246841,2.75809,3625.7,3625.6,0.0862531]
[1732935247037,2.75801,3625.9,3625.6,0.0862531]
[1732935247348,2.75801,3625.8,3625.7,0.0862531]
[1732935247794,2.75791,3626.0,3625.7,0.0862531]
[1732935247993,2.75791,3626.0,3625.3,1.79939961]
[1732935247994,2.75775,3626.2,3625.8,0.0862531]
[1732935248216,2.75791,3626.0,3625.9,0.0862531]
[1732935248414,1.6007,3626.0,3625.9,0.08625088]
[1732935248709,2.75847,3625.2,3624.9,1.6269]
[1732935248879,2.75847,3625.2,3625.0,0.22427621]
[1732935249084,2.75847,3625.2,3625.1,0.08626008]
[1732935249295,2.75831,3625.5,3625.1,0.22427621]
[1732935249485,2.75839,3625.3,3624.9,1.6269]
[1732935249674,2.75839,3625.3,3625.0,0.22428007]
[1732935250010,2.75839,3625.3,3625.1,0.08626156]
[1732935250208,2.75839,3625.3,3625.2,0.08626156]
[1732935250917,4.9135099,3625.3,3625.2,0.08626156]
[1732935251072,2.41276547,3625.3,3624.6,0.13804415]
[1732935251273,2.75913,3624.4,3624.2,1.6269]
[1732935251578,2.75913,3624.4,3624.3,0.22432877]
[1732935253024,2.75939,3624.0,3623.5,1.6269]
[1732935253222,2.75961,3623.7,3623.6,0.17258062]
[1732935253514,2.75961,3623.7,3623.6,0.22436155]
[1732935253725,2.75961,3623.7,3623.6,0.0862929]
[1732935253878,3.01752607,3623.7,3623.6,0.0862929]
[1732935254398,3.01738781,3623.7,3623.6,0.0862929]
[1732935254707,3.78264158,3623.7,3623.6,0.0862929]
[1732935255010,2.76011,3623.1,3622.9,0.1380994]
[1732935255213,2.76011,3623.1,3623.0,0.2244153]
[1732935255516,2.76011,3623.1,3623.0,0.0863159]
[1732935256576,2.75992,3623.3,3622.3,0.1156201]
[1732935256577,2.76044,3622.6,3622.5,0.1380994]
[1732935256898,4.36114,3622.6,3622.5,0.08632456]
[1732935257072,2.7612,3621.7,3621.5,0.1381432]
[1732935257274,5.52104,3622.5,3621.6,0.08634426]
[1732935257510,2.76088,3622.1,3621.7,0.08634426]
[1732935257673,2.00022368,3622.6,3621.8,0.08634426]
[1732935257874,2.7608,3622.2,3621.9,0.08634426]
[1732935258107,2.7608,3622.2,3621.5,3.07206609]
[1732935258108,2.7608,3622.2,3622.0,0.08634426]
[1732935258323,2.7608,3622.2,3622.1,0.08634068]
[1732935259338,2.76083,3622.1,3621.5,0.1381432]
[1732935259615,2.76083,3622.1,3621.6,0.0863403]
[1732935259788,2.76083,3622.1,3621.5,0.1381432]
[1732935259789,2.76083,3622.1,3621.7,0.0863403]
[1732935259990,2.76083,3622.1,3621.8,0.0863403]
[1732935260198,2.76068,3622.3,3621.6,2.76119]
[1732935260508,2.76068,3622.3,3621.7,0.22448221]
[1732935260689,1.6007,3622.6,3621.8,0.08634018]
[1732935260897,2.7606,3622.4,3621.9,0.08634018]
[1732935263585,2.76072,3622.3,3621.6,2.76114]
[1732935263778,2.76072,3622.3,3621.7,0.08633855]
[1732935263983,2.76075,3622.2,3621.8,0.08633855]
[1732935264219,2.76053,3622.5,3621.9,0.08633855]
[1732935264423,2.76075,3622.3,3621.5,2.7888295]
[1732935264599,2.76075,3622.3,3621.6,0.94218556]
[1732935264798,2.76075,3622.2,3621.7,0.08633793]
[1732935265913,2.76075,3622.2,3621.8,0.08633793]
[1732935266115,2.76075,3622.2,3621.6,2.76118]
[1732935266316,2.76075,3622.2,3621.7,0.0863388]
[1732935266523,2.76061,3622.4,3621.8,0.0863388]
[1732935266868,1.6554,3623.0,3622.0,1.6582]
[1732935266982,2.76035,3622.8,3622.1,2.98521852]
[1732935267181,2.76015,3623.0,3622.2,0.08633834]
[1732935267418,0.02749899,3622.9,3622.2,0.2244535]
[1732935267627,2.76026,3622.9,3622.3,0.08633834]
[1732935267791,4.41524,3623.4,3622.4,0.08633834]
[1732935267992,2.75994,3623.3,3622.7,2.76037]
[1732935268318,0.73775478,3623.7,3622.9,2.76021]
[1732935268319,2.75963,3623.7,3622.9,2.76021]
[1732935268527,2.75963,3623.7,3623.0,2.84641834]
[1732935268825,2.75963,3623.7,3623.1,2.84637834]
[1732935268981,2.75963,3623.7,3623.2,0.08633834]
[1732935269185,2.75963,3623.7,3623.1,2.76004]
[1732935269387,2.75963,3623.7,3623.2,0.08630137]
[1732935269715,2.75963,3623.7,3623.1,2.76004]
[1732935269925,2.75963,3623.7,3623.2,0.08630151]
[1732935270218,2.75963,3623.7,3623.1,2.76004]
[1732935270424,2.75963,3623.7,3623.2,0.08630308]
[1732935270632,2.75963,3623.7,3623.1,2.76004]
[1732935270837,2.75912,3624.4,3623.1,2.76004]
[1732935270838,2.75917,3624.3,3623.6,2.75968]
[1732935271137,4.6554,3624.6,3623.7,0.08629265]
[1732935271138,2.75932,3624.1,3623.7,0.08629265]
[1732935271342,2.75932,3624.1,3623.4,2.75983]
[1732935271548,2.75932,3624.1,3623.5,0.22435622]
[1732935271694,2.75916,3624.3,3623.5,0.22435622]
[1732935271895,2.75916,3624.3,3623.6,0.08629078]
[1732935272096,2.7586,3625.1,3623.7,1.68579503]
[1732935272097,1.6554,3625.1,3623.7,1.68579503]
[1732935272408,2.75866,3625.0,3624.1,2.75929]
[1732935272608,2.75866,3625.0,3624.3,1.6582]
[1732935272809,2.75866,3625.0,3624.4,2.84535078]
[1732935273132,1.6554,3625.5,3624.5,0.11387954]
[1732935273331,2.75885,3624.7,3624.6,0.08629078]
[1732935273505,2.75885,3624.7,3624.3,1.6582]
[1732935275046,0.16554,3625.4,3624.0,2.75932]
[1732935275047,2.7587,3624.9,3624.0,2.75932]
[1732935275216,0.02749899,3624.8,3624.1,0.08628036]
[1732935275421,2.7587,3624.9,3624.2,0.08628036]
[1732935275627,2.75907,3624.4,3624.3,0.08628036]
[1732935275932,2.75907,3624.4,3624.1,0.1380452]
[1732935275933,2.75929,3624.2,3623.4,4.41798]
[1732935276133,2.75929,3624.2,3623.5,2.98403721]
[1732935276447,2.75929,3624.2,3623.6,0.22434721]
[1732935276746,2.75929,3624.2,3623.7,0.08628739]
[1732935276944,2.75929,3624.2,3623.8,0.08628739]
[1732935277160,2.75907,3624.4,3623.9,0.08628739]
[1732935277448,2.75906,3624.5,3624.0,0.08628739]
[1732935277765,2.75908,3624.4,3624.1,0.08628739]
[1732935278049,2.75908,3624.4,3624.2,0.08628491]
[1732935278050,2.75918,3624.3,3624.2,0.08628491]
[1732935278257,2.75926,3624.2,3623.7,0.13805891]
[1732935278414,2.75926,3624.2,3623.8,0.08629053]
[1732935278614,2.75926,3624.2,3623.9,0.08629053]
[1732935278815,2.75926,3624.2,3624.0,0.08629053]
[1732935279037,2.75926,3624.2,3624.1,0.08629053]
[1732935279250,2.75926,3624.2,3623.7,0.08629053]
[1732935279547,2.75931,3624.1,3623.8,0.08629053]
[1732935279748,2.75931,3624.1,3623.9,0.08629053]
[1732935279952,2.75931,3624.1,3623.6,0.13805891]
[1732935279953,2.75931,3624.1,3624.0,0.08629053]
[1732935280817,2.75931,3624.1,3624.0,0.08629174]
[1732935281018,2.75931,3624.1,3623.7,0.08629174]
[1732935281242,2.75931,3624.1,3623.6,0.13806679]
[1732935281243,2.75931,3624.1,3623.8,0.08629174]
[1732935281416,2.75931,3624.1,3623.9,0.08629174]
[1732935281615,2.75931,3624.1,3624.0,0.08629174]
[1732935283328,3.3139069,3624.1,3624.0,0.08629174]
[1732935283541,0.5545969,3624.1,3623.5,2.89777679]
[1732935283851,2.75923,3624.2,3623.6,0.22436267]
[1732935284050,2.75923,3624.2,3623.7,0.08629588]
[1732935284223,2.75931,3624.1,3623.8,0.08629588]
[1732935284422,2.75931,3624.1,3623.9,0.08629588]
[1732935284623,2.75931,3624.1,3624.0,0.08629588]
[1732935285549,2.75931,3624.1,3623.5,2.75971]
[1732935285765,2.75939,3624.0,3623.4,1.6582]
[1732935285939,2.75939,3624.0,3623.4,4.41796]
[1732935286276,2.75927,3624.2,3623.6,2.75968]
[1732935286942,2.75916,3624.3,3623.6,2.75968]
[1732935287137,2.7593,3624.1,3623.6,2.75968]
[1732935287361,2.7593,3624.1,3623.4,5.135754]
[1732935287757,2.75939,3624.0,3623.4,5.135754]
[1732935287982,2.75939,3624.0,3623.4,4.41796]
[1732935288142,2.75939,3624.0,3623.5,2.75975]
[1732935288639,2.75928,3624.2,3623.5,2.75975]
[1732935289395,0.182094,3624.5,3623.5,2.75975]
[1732935289575,2.75934,3624.1,3623.5,2.75975]
[1732935291293,4.41427,3624.7,3623.8,2.75948]
[1732935291458,2.75899,3624.6,3623.9,1.6536]
[1732935291783,2.75915,3624.3,3623.9,1.6536]
[1732935292275,1.5856,3625.1,3623.9,1.6536]
[1732935292581,2.75936,3624.1,3623.5,1.6536]
[1732935293384,2.75947,3623.9,3623.5,1.6536]
[1732935293743,2.75947,3623.9,3623.1,4.41364]
[1732935293944,2.75965,3623.7,3623.1,4.41364]
[1732935294153,2.75947,3623.9,3623.1,4.41364]
[1732935294395,2.75947,3623.9,3623.2,2.75994]
[1732935294545,2.75951,3623.9,3623.2,2.75994]
[1732935294940,2.75951,3623.9,3623.3,2.75988]
[1732935295282,2.75933,3624.1,3623.1,1.6536]
[1732935295483,2.75939,3624.0,3623.4,2.7598]
[1732935295642,2.75903,3624.5,3623.7,1.6536]
[1732935295847,2.75903,3624.5,3623.7,4.4132]
[1732935295848,2.75916,3624.3,3623.7,4.4132]
[1732935296046,2.75925,3624.2,3623.8,0.39693621]
[1732935296248,2.75925,3624.2,3623.9,0.39693621]
[1732935296485,2.75925,3624.2,3624.0,0.39693621]
[1732935296656,2.75911,3624.4,3624.1,0.39693621]
[1732935296856,1.5856,3624.8,3623.7,1.76866634]
[1732935296857,2.759,3624.5,3624.2,0.39693621]
[1732935297087,3.19346,3624.5,3624.3,0.39693621]
[1732935297287,3.19346,3624.5,3624.4,0.39693621]
[1732935297461,3.01711543,3624.5,3624.4,0.39693621]
[1732935297985,3.01711543,3624.5,3624.4,0.22435525]
[1732935299276,3.01725135,3624.5,3624.4,0.39693086]
[1732935300561,0.25825135,3624.5,3624.4,0.39693086]
[1732935300794,2.7587,3624.9,3624.5,1.6536]
[1732935301102,3.0170718,3624.8,3624.6,0.39693086]
[1732935301260,2.75878,3624.8,3624.7,0.39693086]
[1732935301457,3.01703466,3624.8,3624.7,0.39693086]
[1732935301693,3.01703658,3624.8,3624.7,0.39693086]
[1732935302104,2.75878,3624.8,3624.7,0.17255464]
[1732935302401,2.75878,3624.8,3624.7,0.39687567]
[1732935303100,3.01699866,3624.8,3624.7,0.39687567]
[1732935303983,3.59456653,3624.8,3624.7,0.22432103]
[1732935305166,4.00782616,3624.8,3624.7,0.22432103]
[1732935305366,3.59456653,3624.8,3624.7,0.22432103]
[1732935305667,4.00802668,3624.8,3624.7,0.2243443]
[1732935305878,3.59467972,3624.8,3624.7,0.2243443]
[1732935306101,4.00802668,3624.8,3624.7,0.2243443]
[1732935306301,3.59467972,3624.8,3624.7,0.2243443]
[1732935306676,5.60882567,3624.8,3624.7,0.2243443]
[1732935306876,8.60882567,3624.8,3624.7,0.08628627]
[1732935307062,8.58132668,3624.8,3624.7,0.08628627]
[1732935307582,5.58132668,3624.8,3624.7,0.08628627]
[1732935307768,5.58132668,3624.8,3624.7,0.22434378]
[1732935307962,5.16797972,3624.8,3624.7,0.22434378]
[1732935308215,5.58132668,3624.8,3624.7,0.08628627]
[1732935308373,5.58132668,3624.8,3624.7,0.22433727]
[1732935308708,5.16797972,3624.8,3624.7,0.08628627]
[1732935309014,5.16797972,3624.8,3624.7,0.22434449]
[1732935309015,5.58132668,3624.8,3624.7,0.22434449]
[1732935309790,5.16797972,3624.8,3624.7,0.22434449]
[1732935309988,5.58132668,3624.8,3624.7,0.22434449]
[1732935310385,5.16797972,3624.8,3624.7,0.22434449]
[1732935310608,5.58132668,3624.8,3624.7,0.22434449]
[1732935310983,5.16797972,3624.8,3624.7,0.22434449]
[1732935311183,3.43045881,3624.8,3624.7,0.22434449]
[1732935311407,3.01711185,3624.8,3624.7,0.22434449]
[1732935311577,0.25834185,3624.8,3624.7,0.39690539]
[1732935311778,3.01711185,3624.8,3624.7,0.39690539]
[1732935312180,3.63602573,3624.8,3624.7,0.39690539]
[1732935312520,9.23227269,3624.8,3624.7,0.08628627]
[1732935312725,2.75953,3623.8,3623.2,1.62]
[1732935312924,2.75944,3624.0,3623.2,1.62]
[1732935312925,2.75938,3624.0,3623.3,3.15685591]
[1732935313072,2.75938,3624.0,3623.7,0.11544126]
[1732935313273,2.75938,3624.0,3623.8,0.51241717]
[1732935313473,1.6329,3624.6,3624.0,1.62]
[1732935313474,2.75896,3624.6,3624.0,1.62]
[1732935313702,2.75896,3624.6,3624.2,0.11544126]
[1732935313907,0.25830255,3624.5,3624.3,0.3106768]
[1732935314110,0.25830255,3624.4,3624.2,0.11544126]
[1732935314318,2.75896,3624.6,3624.3,0.39689639]
[1732935314616,0.2583038,3624.5,3624.4,0.39689639]
[1732935314789,3.0173038,3624.5,3624.4,0.39689639]
[1732935316116,3.43062373,3624.5,3624.4,0.39689639]
[1732935316612,3.0173038,3624.5,3624.4,0.39689639]
[1732935317015,3.43063951,3624.5,3624.4,0.39689639]
[1732935317327,5.68249946,3624.5,3624.4,0.22433274]
[1732935317488,5.68249946,3624.5,3624.4,0.08628182]
[1732935317831,5.68249946,3624.5,3624.4,0.22435423]
[1732935317978,5.68249946,3624.5,3624.4,0.08628182]
[1732935319783,5.68249946,3624.5,3623.9,0.17260101]
[1732935319784,2.75938,3624.0,3623.9,0.17260101]
[1732935319985,2.75976,3623.5,3623.0,0.11544126]
[1732935320295,2.76006,3623.2,3622.7,0.11544126]
[1732935320593,2.76006,3623.1,3622.8,0.42618532]
[1732935320779,2.76006,3623.1,3622.6,1.62]
[1732935320780,2.76014,3623.0,3622.9,0.31074406]
[1732935321400,2.76014,3623.0,3622.9,0.13810818]
[1732935322324,2.76005,3623.2,3622.9,0.13810818]
[1732935322485,2.76005,3623.2,3623.0,0.13810818]
[1732935322687,2.76005,3623.2,3623.1,0.13810917]
[1732935324208,3.312045,3623.2,3623.1,0.13810917]
[1732935324435,2.76017,3623.0,3622.8,0.13810917]
[1732935324627,2.76017,3623.0,3622.9,0.13810917]
[1732935325141,2.76005,3623.2,3622.9,0.13810917]
[1732935325142,2.76008,3623.1,3622.9,0.13810917]
[1732935325338,2.76008,3623.1,3623.0,0.13810917]
[1732935326631,2.76016,3623.0,3622.7,0.13810917]
[1732935326844,2.76016,3623.0,3622.8,0.13810917]
[1732935327057,2.76016,3623.0,3622.9,0.13810917]
[1732935327340,2.76008,3623.1,3622.9,0.13810917]
[1732935327520,2.76008,3623.1,3623.0,0.13810917]
[1732935328108,2.76008,3623.1,3622.7,0.13810917]
[1732935328109,4.88357899,3623.1,3622.7,0.13810917]
[1732935328308,4.33157899,3623.1,3622.4,0.13810917]
[1732935328610,2.76048,3622.6,3622.5,0.13810917]
[1732935328940,2.76048,3622.6,3622.2,0.55]
[1732935329144,2.76048,3622.6,3622.3,0.13810917]
[1732935329353,1.544,3623.1,3622.4,0.13810917]
[1732935329354,2.76052,3622.5,3622.4,0.13810917]
[1732935329516,2.76031,3622.8,3622.2,0.13810917]
[1732935329729,2.76037,3622.7,3622.3,0.13810917]
[1732935330030,2.7605,3622.6,3622.4,0.13810917]
[1732935330210,2.7605,3622.6,3622.1,0.13810917]
[1732935330541,2.7605,3622.6,3622.2,0.13812324]
[1732935330717,2.7605,3622.6,3622.3,0.13812324]
[1732935331047,2.7605,3622.6,3622.2,0.13812324]
[1732935331347,2.7605,3622.6,3622.3,0.13812324]
[1732935331555,2.7605,3622.6,3622.4,0.13812324]
[1732935331710,2.7605,3622.6,3622.2,0.13812324]
[1732935331912,3.206181,3622.8,3622.2,0.13812324]
[1732935331913,2.76053,3622.5,3622.3,0.08632662]
[1732935332217,2.76053,3622.5,3621.8,1.5422]
[1732935332218,2.7609,3622.0,3621.9,0.1381362]
[1732935332543,2.7609,3622.0,3621.9,0.22447442]
[1732935333146,0.445871,3622.8,3621.9,2.98539442]
[1732935333357,2.76042,3622.7,3622.1,0.55]
[1732935333657,2.76004,3623.2,3622.7,1.5422]
[1732935333857,0.551987,3623.1,3622.8,0.22447442]
[1732935334157,0.551987,3623.1,3622.9,0.08633822]
[1732935334158,2.76007,3623.1,3622.9,0.08633822]
[1732935334485,2.76007,3623.1,3623.0,0.08633822]
[1732935335210,4.30407,3623.1,3623.0,0.08633822]
[1732935335536,4.30407,3623.1,3622.5,0.1381362]
[1732935335537,2.76044,3622.6,3622.5,0.1381362]
[1732935335741,2.76044,3622.6,3622.5,0.08632802]
[1732935335944,4.30444,3622.6,3622.5,0.08632802]
[1732935336155,2.76075,3622.2,3621.7,0.1381362]
[1732935336458,2.76075,3622.2,3621.8,0.22447428]
[1732935336620,2.76075,3622.2,3621.7,0.3108109]
[1732935336621,2.76098,3621.9,3621.7,0.3108109]
[1732935336959,2.76098,3621.9,3621.8,0.08634048]
[1732935337159,4.30498,3621.9,3621.8,0.08634048]
[1732935337656,2.76133,3621.5,3621.0,0.31082729]
[1732935337821,2.76133,3621.5,3621.1,0.22448819]
[1732935338017,2.76159,3621.1,3621.0,0.31086147]
[1732935338276,2.76159,3621.1,3621.0,0.0863616]
[1732935338476,2.76179,3620.9,3620.6,0.13817038]
[1732935338637,2.76179,3620.9,3620.7,0.08636905]
[1732935338833,2.76179,3620.9,3620.8,0.08636905]
[1732935339038,0.706738,3620.9,3620.2,1.5422]
[1732935339236,2.76132,3621.5,3620.3,2.11766071]
[1732935339540,2.76152,3621.2,3620.4,0.2245466]
[1732935339845,2.76171,3621.0,3620.5,0.08637622]
[1732935340045,2.76171,3621.0,3620.6,0.08637622]
[1732935340261,2.76182,3620.8,3620.7,0.08637622]
[1732935340432,2.76182,3620.8,3620.0,1.5499]
[1732935340637,2.7619,3620.7,3620.1,0.22457661]
[1732935340847,2.7619,3620.7,3620.2,0.08637681]
[1732935341038,2.7619,3620.7,3620.3,0.08637681]
[1732935341237,2.7619,3620.7,3620.4,0.08637681]
[1732935341448,2.78939899,3620.7,3620.5,0.08637681]
[1732935341673,2.78939899,3620.7,3619.6,2.76271]
[1732935341674,2.76227,3620.2,3619.1,1.66396337]
[1732935342042,2.76258,3619.8,3619.2,0.22461809]
[1732935342186,2.76258,3619.8,3619.3,0.08639157]
[1732935342492,2.7627,3619.7,3619.4,0.08639157]
[1732935342646,2.76281,3619.5,3619.4,0.08639157]
[1732935342850,2.79030899,3619.5,3619.4,0.08640071]
[1732935343084,2.79030899,3619.5,3619.4,0.08640595]
[1732935343249,2.76281,3619.5,3619.0,0.01970339]
[1732935343450,2.79030899,3619.5,3619.1,0.08640611]
[1732935343663,2.76296,3619.4,3619.2,0.08640611]
[1732935343886,2.76296,3619.4,3619.3,0.08640611]
[1732935344261,2.76296,3619.4,3619.0,0.01970339]
[1732935344463,2.76296,3619.4,3619.3,0.08640835]
[1732935344775,0.58759257,3619.4,3619.0,0.01970339]
[1732935345090,3.35048257,3619.4,3619.1,0.08640755]
[1732935345291,2.76289,3619.4,3619.2,0.08640755]
[1732935345490,2.76289,3619.4,3619.0,0.01970339]
[1732935345693,2.76289,3619.4,3619.1,0.0864084]
[1732935345903,1.5677,3619.9,3619.2,0.0864084]
[1732935346115,2.76241,3620.1,3619.4,2.76281]
[1732935346275,2.76241,3620.1,3619.5,0.0864084]
[1732935346472,2.76244,3620.0,3619.6,0.0864084]
[1732935346672,2.76244,3620.0,3619.7,0.0864084]
[1732935346877,2.76244,3620.0,3619.4,0.13823512]
[1732935347086,2.76244,3620.0,3619.5,0.08639538]
[1732935347298,2.76228,3620.2,3619.6,0.08639538]
[1732935347637,4.26763,3620.4,3619.7,0.08639538]
[1732935347902,2.76253,3619.9,3619.8,0.08639538]
[1732935348263,5.5251,3619.9,3619.2,0.13823662]
[1732935348607,2.76274,3619.6,3619.3,0.0864016]
[1732935348773,1.5055,3619.7,3619.4,0.0864016]
[1732935348973,1.5055,3619.7,3619.5,0.0864016]
[1732935348974,2.76276,3619.6,3619.5,0.0864016]
[1732935349367,1.5055,3619.7,3619.5,0.0864016]
[1732935349710,2.76228,3620.2,3619.6,0.0864016]
[1732935350015,0.55877074,3620.6,3620.4,2.76206]
[1732935350297,2.7616,3621.1,3620.5,0.0863914]
[1732935350503,0.552304,3621.0,3620.6,0.0863914]
[1732935350800,0.552304,3621.0,3620.7,0.0863914]
[1732935351105,3.313974,3621.0,3620.8,0.0863914]
[1732935351279,0.552304,3621.0,3620.5,2.76204]
[1732935351461,1.5564,3621.3,3620.3,1.5016]
[1732935351666,2.76165,3621.1,3620.6,0.08636818]
[1732935352000,2.76165,3621.1,3620.7,0.08636818]
[1732935352207,2.76165,3621.1,3620.5,0.13818909]
[1732935352208,2.76165,3621.1,3620.8,0.08636818]
[1732935352373,2.76165,3621.1,3620.9,0.08636818]
[1732935352579,2.76172,3621.0,3620.6,0.13818909]
[1732935352910,2.76172,3621.0,3620.7,0.08637142]
[1732935353202,2.76172,3621.0,3620.8,0.08637142]
[1732935353405,2.76172,3621.0,3620.9,0.08637142]
[1732935353786,2.78921899,3621.0,3620.9,0.08637142]
[1732935353990,2.76172,3621.0,3620.9,0.08637142]
[1732935354193,0.75417239,3621.0,3620.5,0.13818909]
[1732935354545,0.75417239,3621.0,3620.3,1.67433637]
[1732935354546,3.1961949,3621.1,3620.6,0.22456644]
[1732935354814,4.31785,3621.3,3620.7,0.22456644]
[1732935355132,4.31785,3621.3,3620.6,2.76196]
[1732935355133,4.31785,3621.3,3620.8,0.22456644]
[1732935355276,2.76159,3621.1,3620.9,0.22456644]
[1732935355613,2.76159,3621.1,3621.0,0.22456644]
[1732935355795,2.76159,3621.1,3621.0,0.08637735]
[1732935356213,3.469529,3621.1,3621.0,0.08637735]
[1732935357130,3.469529,3621.1,3620.1,0.17273637]
[1732935357131,2.76189,3620.7,3620.1,0.17273637]
[1732935357331,2.76198,3620.6,3620.2,0.39732333]
[1732935357631,2.76212,3620.4,3620.3,0.22458696]
[1732935358417,2.76212,3620.4,3620.3,0.22460082]
[1732935358926,1.5564,3621.8,3620.3,2.01246672]
[1732935359138,1.58389899,3622.2,3621.4,2.76133]
[1732935359425,2.76108,3621.8,3621.5,0.22460082]
[1732935359725,2.76108,3621.8,3621.6,0.22460082]
[1732935360023,2.76146,3621.3,3620.6,2.87544953]
[1732935360324,2.76179,3620.9,3620.7,0.22454853]
[1732935360524,2.7618,3620.9,3620.8,0.08636482]
[1732935360853,4.34569899,3620.9,3620.8,0.08636482]
[1732935361025,2.76209,3620.5,3620.3,0.13819829]
[1732935361194,2.76209,3620.5,3619.8,2.87607953]
[1732935361195,2.76209,3620.5,3620.4,0.08638285]
[1732935361389,2.76209,3620.5,3619.8,2.76255]
[1732935361593,2.76209,3620.5,3619.9,0.22459784]
[1732935361925,2.76209,3620.5,3620.0,0.22459784]
[1732935362128,2.76209,3620.5,3620.1,0.22459784]
[1732935362302,2.76214,3620.4,3620.2,0.22459784]
[1732935362487,2.76214,3620.4,3620.3,0.22459784]
[1732935365358,3.01972333,3620.4,3620.3,0.22459784]
[1732935367367,0.25758333,3620.4,3620.3,0.22459784]
[1732935367672,0.25758333,3620.4,3620.3,0.33827452]
[1732935367967,0.25790869,3620.4,3620.3,0.33827452]
[1732935368329,0.25790869,3620.4,3620.3,0.22459784]
[1732935368735,0.25794498,3620.4,3620.3,0.22459784]
[1732935369473,0.25794498,3620.4,3620.3,1.96718824]
[1732935369675,0.67062349,3621.1,3620.7,2.76188]
[1732935369827,0.25793211,3621.0,3620.9,4.39013]
[1732935370033,0.41269138,3621.5,3620.9,4.61472784]
[1732935370375,0.25785556,3621.4,3621.0,3.10033347]
[1732935370537,0.25785556,3621.3,3621.1,0.22459784]
[1732935370874,2.78878899,3621.5,3621.2,0.22459784]
[1732935371168,0.25785336,3621.4,3621.3,0.22459784]
[1732935371567,0.25780308,3621.4,3621.3,0.22459784]
[1732935372167,3.01916308,3621.4,3621.3,0.22459784]
[1732935373193,0.25780308,3621.4,3621.3,0.22459784]
[1732935373771,2.76126,3621.6,3621.3,0.22459784]
[1732935373986,2.76126,3621.6,3621.0,2.87571563]
[1732935373987,0.25777568,3621.5,3621.4,0.22459784]
[1732935374470,0.2577145,3622.2,3621.6,2.76115]
[1732935374795,0.2577145,3622.1,3621.7,0.22459784]
[1732935374995,0.25776778,3622.0,3621.8,0.22459784]
[1732935375155,0.25766264,3622.2,3621.9,0.08638376]
[1732935375480,0.25774004,3622.1,3622.0,0.22459784]
[1732935375793,2.76082,3622.1,3622.0,0.22459784]
[1732935376002,3.29464466,3622.1,3622.0,0.22459784]
[1732935376361,0.53382466,3622.1,3622.0,0.22459784]
[1732935377270,3.29464466,3622.1,3622.0,0.22459784]
[1732935377701,0.42956674,3623.0,3622.3,2.76066]
[1732935377907,3.01787569,3622.9,3622.4,0.39728009]
[1732935378091,3.01792569,3622.8,3622.5,0.39728009]
[1732935378258,2.7603,3622.8,3622.6,0.22459784]
[1732935378464,2.7603,3622.8,3622.7,0.22444539]
[1732935378796,3.56986173,3622.8,3622.7,0.22444539]